bitfinex/quotes_BTCUSD_20240911
["timestamp","ask_amount","ask_price","bid_price","bid_amount"]
[1726051738289,0.01778128,56654.0,56653.0,0.005]
[1726051739333,0.01778128,56654.0,56653.0,0.08435046]
[1726051740336,0.01778128,56654.0,56653.0,0.31046525]
[1726051740539,0.19429128,56654.0,56653.0,0.31046525]
[1726051740745,0.25559128,56654.0,56653.0,0.38987142]
[1726051740954,0.25559128,56654.0,56653.0,0.05793891]
[1726051741298,0.07908128,56654.0,56653.0,0.08443476]
[1726051741864,0.25559128,56654.0,56653.0,0.005]
[1726051742291,0.25559128,56654.0,56653.0,0.05795652]
[1726051742501,0.25559128,56654.0,56653.0,0.005]
[1726051742502,1.04233128,56654.0,56653.0,0.005]
[1726051742723,1.88724121,56654.0,56653.0,0.005]
[1726051743327,1.88624121,56654.0,56653.0,0.005]
[1726051743530,1.92790655,56654.0,56653.0,0.006]
[1726051743932,1.92790655,56654.0,56653.0,0.001]
[1726051744136,1.235591,56653.0,56652.0,0.00209874]
[1726051744337,1.66829546,56653.0,56652.0,0.00209874]
[1726051744755,1.65233118,56653.0,56652.0,0.00209874]
[1726051744971,1.66837246,56653.0,56652.0,0.00209874]
[1726051745174,1.6683718,56653.0,56652.0,0.00209874]
[1726051745781,2.0213978,56653.0,56652.0,0.00209874]
[1726051745984,2.19756735,56653.0,56652.0,0.00209874]
[1726051746191,2.25075298,56653.0,56652.0,0.00209874]
[1726051746606,2.25075298,56653.0,56652.0,0.00309874]
[1726051746607,2.07458343,56653.0,56652.0,0.00309874]
[1726051747235,2.08858343,56653.0,56652.0,0.00409874]
[1726051747439,2.0353978,56653.0,56652.0,0.00409874]
[1726051750062,1.05340562,56653.0,56652.0,0.00409874]
[1726051750325,0.70037962,56653.0,56652.0,0.00409874]
[1726051751361,0.80031535,56653.0,56652.0,0.00409874]
[1726051753727,0.12997635,56653.0,56652.0,0.00409874]
[1726051753964,0.20648935,56653.0,56652.0,0.00409874]
[1726051754221,0.30648935,56653.0,56652.0,0.00409874]
[1726051754455,0.30651887,56653.0,56652.0,0.00409874]
[1726051755546,0.65954487,56653.0,56652.0,0.00409874]
[1726051755752,0.30651887,56653.0,56652.0,0.00409874]
[1726051758345,0.290513,56653.0,56652.0,0.00409874]
[1726051758565,0.30639679,56653.0,56652.0,0.00409874]
[1726051758792,0.02988379,56653.0,56652.0,0.00409874]
[1726051761371,0.02988379,56653.0,56652.0,0.0308048]
[1726051761579,0.02988379,56653.0,56652.0,0.00409874]
[1726051761795,0.014,56653.0,56652.0,0.08519874]
[1726051762023,0.000817,56654.0,56652.0,0.08419874]
[1726051762236,0.01595179,56653.0,56652.0,0.08419874]
[1726051762446,0.01595179,56653.0,56652.0,0.08319874]
[1726051762447,0.01595242,56653.0,56652.0,0.08319874]
[1726051762653,0.000817,56654.0,56652.0,0.08919874]
[1726051762865,0.01595788,56653.0,56652.0,0.00209874]
[1726051763284,0.01595788,56653.0,56652.0,0.00709874]
[1726051764131,0.01595788,56653.0,56652.0,0.00209874]
[1726051764549,0.01595788,56653.0,56652.0,0.00809874]
[1726051764781,0.001817,56654.0,56652.0,0.00809874]
[1726051764970,0.01590692,56653.0,56652.0,0.00809874]
[1726051766009,0.70906881,56653.0,56652.0,0.00809874]
[1726051766225,1.14277192,56653.0,56652.0,0.00809874]
[1726051766449,1.14277192,56653.0,56652.0,0.00209874]
[1726051766676,1.14277192,56653.0,56652.0,0.00709874]
[1726051766898,1.14377192,56653.0,56652.0,0.00709874]
[1726051767098,1.14377192,56653.0,56652.0,0.00209874]
[1726051767306,1.14377192,56653.0,56652.0,0.00309874]
[1726051767516,1.1580899,56653.0,56652.0,0.00209874]
[1726051767731,1.5111159,56653.0,56652.0,0.00209874]
[1726051767956,1.5111159,56653.0,56652.0,0.00309874]
[1726051767957,2.05970943,56653.0,56652.0,0.00309874]
[1726051768820,2.05870943,56653.0,56652.0,0.00309874]
[1726051769238,1.89938395,56653.0,56652.0,0.00409874]
[1726051769666,1.53435795,56653.0,56652.0,0.00209874]
[1726051769871,1.33303008,56653.0,56652.0,0.00209874]
[1726051770078,1.34503008,56653.0,56652.0,0.00409874]
[1726051770283,1.34503008,56653.0,56652.0,0.00309874]
[1726051770486,1.69805608,56653.0,56652.0,0.00309874]
[1726051770680,1.1690899,56653.0,56652.0,0.00409874]
[1726051772467,1.16896878,56653.0,56652.0,0.00409874]
[1726051773110,1.16978578,56653.0,56652.0,0.00409874]
[1726051774971,1.15399998,56653.0,56652.0,0.00409874]
[1726051775193,1.16978822,56653.0,56652.0,0.00409874]
[1726051776168,1.17686422,56653.0,56652.0,0.00409874]
[1726051776578,1.16978822,56653.0,56652.0,0.00409874]
[1726051778410,1.16986283,56653.0,56652.0,0.00409874]
[1726051781147,1.16991397,56653.0,56652.0,0.00409874]
[1726051783157,1.72426784,56653.0,56652.0,0.00409874]
[1726051783593,1.52293997,56653.0,56652.0,0.00409874]
[1726051788569,1.16991397,56653.0,56652.0,0.00409874]
[1726051788855,1.52296786,56653.0,56652.0,0.00409874]
[1726051791180,1.16994186,56653.0,56652.0,0.00409874]
[1726051791427,0.67261586,56653.0,56652.0,0.00409874]
[1726051791663,1.02564186,56653.0,56652.0,0.00409874]
[1726051792152,0.65667398,56653.0,56652.0,0.00409874]
[1726051792380,1.02561929,56653.0,56652.0,0.00409874]
[1726051794102,0.67259329,56653.0,56652.0,0.00409874]
[1726051794559,1.02561929,56653.0,56652.0,0.00409874]
[1726051794799,0.67259329,56653.0,56652.0,0.00409874]
[1726051795028,1.02561929,56653.0,56652.0,0.00409874]
[1726051795684,0.65667398,56653.0,56652.0,0.00409874]
[1726051795897,0.67258819,56653.0,56652.0,0.00409874]
[1726051796116,1.02561419,56653.0,56652.0,0.00409874]
[1726051801626,1.00969998,56653.0,56652.0,0.00409874]
[1726051801847,1.02557192,56653.0,56652.0,0.00409874]
[1726051803131,1.18558348,56653.0,56652.0,0.00409874]
[1726051803345,1.39804438,56653.0,56652.0,0.00409874]
[1726051803562,1.73519844,56653.0,56652.0,0.00409874]
[1726051803764,2.08822444,56653.0,56652.0,0.00409874]
[1726051804407,2.08822444,56653.0,56652.0,0.00309874]
[1726051804606,2.28034083,56653.0,56652.0,0.00409874]
[1726051805036,2.26834083,56653.0,56652.0,0.00209874]
[1726051805434,1.75314528,56653.0,56652.0,0.00309874]
[1726051806264,1.75317057,56653.0,56652.0,0.00309874]
[1726051806474,2.10619657,56653.0,56652.0,0.00309874]
[1726051807090,1.76617057,56653.0,56652.0,0.00409874]
[1726051807709,1.73917057,56653.0,56652.0,0.00209874]
[1726051808036,1.76617057,56653.0,56652.0,0.00309874]
[1726051808254,1.76617057,56653.0,56652.0,0.00209874]
[1726051808474,1.75217057,56653.0,56652.0,0.00209874]
[1726051808805,1.76617057,56653.0,56652.0,0.00209874]
[1726051809587,1.76617057,56653.0,56652.0,0.00201974]
[1726051810631,1.77317057,56653.0,56652.0,0.00301974]
[1726051811042,1.75917057,56653.0,56652.0,0.00301974]
[1726051811252,1.75317057,56653.0,56652.0,0.00201974]
[1726051811866,1.73917057,56653.0,56652.0,0.00201974]
[1726051812107,1.75317057,56653.0,56652.0,0.00201974]
[1726051812595,1.76017057,56653.0,56652.0,0.00301974]
[1726051813305,1.7878386,56653.0,56652.0,0.00301974]
[1726051813508,1.96400815,56653.0,56652.0,0.00301974]
[1726051813856,1.7808386,56653.0,56652.0,0.00201974]
[1726051814331,1.7858386,56653.0,56652.0,0.00301974]
[1726051815649,1.76986647,56653.0,56652.0,0.00301974]
[1726051815891,1.78581949,56653.0,56652.0,0.00301974]
[1726051816328,1.76986647,56653.0,56652.0,0.00301974]
[1726051816523,2.13884537,56653.0,56652.0,0.00301974]
[1726051816732,1.96198892,56653.0,56652.0,0.00301974]
[1726051819058,2.31501492,56653.0,56652.0,0.00301974]
[1726051819703,2.31706917,56653.0,56652.0,0.00301974]
[1726051820375,2.28940114,56653.0,56652.0,0.00301974]
[1726051821009,2.11323159,56653.0,56652.0,0.00301974]
[1726051821872,2.11123159,56653.0,56652.0,0.00301974]
[1726051823147,1.75820559,56653.0,56652.0,0.00301974]
[1726051823364,1.78587428,56653.0,56652.0,0.00301974]
[1726051823587,2.13890028,56653.0,56652.0,0.00301974]
[1726051823819,2.96729583,56653.0,56652.0,7.4e-07]
[1726051824040,2.96729583,56653.0,56641.0,0.001634]
[1726051824041,0.672841,56642.0,56641.0,0.001634]
[1726051824252,2.09807627,56642.0,56641.0,0.001634]
[1726051824480,2.22807627,56642.0,56641.0,0.001634]
[1726051824709,2.22807627,56642.0,56630.0,0.001634]
[1726051824710,0.176581,56631.0,56630.0,0.001634]
[1726051824917,1.06889727,56631.0,56630.0,0.001634]
[1726051825132,2.22838627,56631.0,56630.0,0.001634]
[1726051825360,2.10751261,56631.0,56630.0,0.001634]
[1726051825605,1.67121733,56631.0,56630.0,0.001634]
[1726051825806,1.79209099,56631.0,56630.0,0.001634]
[1726051826320,1.88452801,56631.0,56630.0,0.001634]
[1726051826734,1.900377,56631.0,56630.0,0.001634]
[1726051827184,1.91530078,56631.0,56630.0,0.001634]
[1726051827805,1.92930078,56631.0,56630.0,0.001634]
[1726051828257,1.91530078,56631.0,56630.0,0.001634]
[1726051828670,1.92930078,56631.0,56630.0,0.001634]
[1726051829307,1.91345179,56631.0,56630.0,0.001634]
[1726051829478,1.94328506,56631.0,56630.0,0.002634]
[1726051829931,1.92928506,56631.0,56630.0,0.001634]
[1726051830168,2.07777619,56631.0,56630.0,0.001634]
[1726051830458,2.09177619,56631.0,56630.0,0.002634]
[1726051830701,2.00917619,56631.0,56630.0,0.002634]
[1726051832526,1.77240664,56631.0,56630.0,0.002634]
[1726051832716,1.75657337,56631.0,56630.0,0.002634]
[1726051832933,1.57081315,56631.0,56630.0,0.002634]
[1726051833593,1.59849078,56631.0,56630.0,0.002634]
[1726051836112,1.58261159,56631.0,56630.0,0.002634]
[1726051836364,1.5985365,56631.0,56630.0,0.002634]
[1726051836618,1.42259632,56631.0,56630.0,0.002634]
[1726051838054,1.59138989,56631.0,56630.0,0.002634]
[1726051838400,1.42259632,56631.0,56630.0,0.002634]
[1726051839285,1.40859632,56631.0,56630.0,0.002634]
[1726051839501,1.37867141,56631.0,56630.0,0.001634]
[1726051839753,1.37867141,56631.0,56630.0,0.002634]
[1726051839754,1.41765513,56631.0,56630.0,0.002634]
[1726051840003,1.79523458,56631.0,56630.0,0.002634]
[1726051840231,1.9437265,56631.0,56630.0,0.002634]
[1726051840455,2.4724895,56631.0,56630.0,0.002634]
[1726051840676,2.4934895,56631.0,56630.0,0.002634]
[1726051841082,2.4794895,56631.0,56630.0,0.002634]
[1726051841385,2.4934895,56631.0,56630.0,0.002634]
[1726051841817,2.4844895,56631.0,56630.0,0.001634]
[1726051842107,2.4794895,56631.0,56630.0,0.002634]
[1726051842319,2.4934895,56631.0,56630.0,0.002634]
[1726051843399,2.26431995,56631.0,56630.0,0.002634]
[1726051843610,1.5935978,56631.0,56630.0,0.002634]
[1726051843827,1.5935978,56631.0,56630.0,0.063634]
[1726051845136,1.5935978,56631.0,56630.0,0.002634]
[1726051845354,1.79523721,56631.0,56630.0,0.002634]
[1726051845562,2.14840021,56631.0,56630.0,0.002634]
[1726051845802,2.38646976,56631.0,56630.0,0.002634]
[1726051847333,1.97140676,56631.0,56630.0,0.002634]
[1726051849999,1.97142446,56631.0,56630.0,0.002634]
[1726051850247,1.9437442,56631.0,56630.0,0.002634]
[1726051851266,1.2039372,56631.0,56624.0,0.0024544]
[1726051851500,2.04154018,56625.0,56624.0,0.0024544]
[1726051851743,2.82070542,56625.0,56624.0,0.0024544]
[1726051852002,3.00883503,56625.0,56624.0,0.0024544]
[1726051852472,2.9597067,56625.0,56624.0,0.0024544]
[1726051852680,3.01982971,56625.0,56624.0,0.0034544]
[1726051852894,3.19599926,56625.0,56624.0,0.0024544]
[1726051853146,2.96758421,56625.0,56624.0,0.0024544]
[1726051853380,1.72791,56614.0,56610.0,0.001634]
[1726051853633,2.31534626,56614.0,56610.0,0.001634]
[1726051853853,2.41534626,56614.0,56610.0,0.001634]
[1726051854082,2.84777671,56614.0,56610.0,0.001634]
[1726051854304,1.761996,56611.0,56610.0,0.001634]
[1726051854527,2.46739373,56611.0,56610.0,0.001634]
[1726051854744,2.68531963,56611.0,56610.0,0.001634]
[1726051854959,2.73600884,56611.0,56610.0,0.001634]
[1726051855625,2.68298294,56611.0,56610.0,0.001634]
[1726051855842,1.620021,56603.0,56602.0,0.0040884]
[1726051856057,2.24250059,56603.0,56602.0,0.0040884]
[1726051856289,2.26550059,56603.0,56602.0,0.0040884]
[1726051856765,2.29319369,56603.0,56602.0,0.0040884]
[1726051856978,2.29519369,56603.0,56602.0,0.0040884]
[1726051857205,2.47136324,56603.0,56602.0,0.0040884]
[1726051857678,2.46936324,56603.0,56602.0,0.0040884]
[1726051858600,2.48336324,56603.0,56602.0,0.0040884]
[1726051859097,2.49736324,56603.0,56602.0,0.0040884]
[1726051859326,2.48336324,56603.0,56602.0,0.0040884]
[1726051859561,2.49736324,56603.0,56602.0,0.0040884]
[1726051859812,2.51227848,56603.0,56602.0,0.0040884]
[1726051860299,2.48458538,56603.0,56602.0,0.0040884]
[1726051860531,1.93334738,56603.0,56602.0,0.0040884]
[1726051861501,1.91934738,56603.0,56602.0,0.0040884]
[1726051862749,1.90534738,56603.0,56602.0,0.0040884]
[1726051862983,1.91934738,56603.0,56602.0,0.0040884]
[1726051863219,1.96104051,56603.0,56602.0,0.0040884]
[1726051863471,1.56923155,56603.0,56602.0,0.0040884]
[1726051864484,0.58661537,56603.0,56602.0,0.0040884]
[1726051864953,0.92595337,56603.0,56602.0,0.0040884]
[1726051865434,0.94995337,56603.0,56602.0,0.0040884]
[1726051865672,1.03995337,56603.0,56602.0,0.0040884]
[1726051865896,1.19485475,56603.0,56602.0,0.0040884]
[1726051866122,0.68261537,56603.0,56602.0,0.0040884]
[1726051866343,0.68261537,56603.0,56602.0,0.1474884]
[1726051866558,0.68561537,56603.0,56602.0,0.1474884]
[1726051866777,0.68261537,56603.0,56602.0,0.1474884]
[1726051866987,1.03595337,56603.0,56602.0,0.0680884]
[1726051867208,0.68261537,56603.0,56602.0,0.0680884]
[1726051867880,0.67261537,56603.0,56602.0,0.0680884]
[1726051868333,0.66870013,56603.0,56602.0,0.0680884]
[1726051868779,1.02203813,56603.0,56602.0,0.0680884]
[1726051869244,0.66870013,56603.0,56602.0,0.0680884]
[1726051869481,0.13869313,56603.0,56602.0,0.0680884]
[1726051869713,0.34689814,56603.0,56602.0,0.0680884]
[1726051869940,1.22367754,56603.0,56602.0,0.0680884]
[1726051870624,0.66870013,56603.0,56602.0,0.0680884]
[1726051870837,1.02203813,56603.0,56602.0,0.0680884]
[1726051871050,1.01303813,56603.0,56602.0,0.0680884]
[1726051871270,0.65970013,56603.0,56602.0,0.0680884]
[1726051871521,0.66370013,56603.0,56602.0,0.0680884]
[1726051871742,1.01703813,56603.0,56602.0,0.0680884]
[1726051871968,0.65770013,56603.0,56602.0,0.0680884]
[1726051872425,0.67170013,56603.0,56602.0,0.0680884]
[1726051872875,0.66870013,56603.0,56602.0,0.0680884]
[1726051873594,0.67270013,56603.0,56602.0,0.0680884]
[1726051874246,0.645007,56603.0,56602.0,0.0680884]
[1726051875111,0.76646998,56603.0,56602.0,0.0680884]
[1726051875976,0.645007,56603.0,56602.0,0.0680884]
[1726051879909,1.55332241,56603.0,56602.0,0.0680884]
[1726051880450,1.55332241,56603.0,56602.0,0.0040884]
[1726051880870,1.54232241,56603.0,56602.0,0.0040884]
[1726051881080,1.71826259,56603.0,56602.0,0.0040884]
[1726051881284,1.90155489,56603.0,56602.0,0.0040884]
[1726051881487,1.90955489,56603.0,56602.0,0.0040884]
[1726051881711,1.89555489,56603.0,56602.0,0.0040884]
[1726051881945,1.88755489,56603.0,56602.0,0.0040884]
[1726051882162,1.91055489,56603.0,56602.0,0.0040884]
[1726051882407,1.90155489,56603.0,56602.0,0.0040884]
[1726051882618,2.78163089,56603.0,56602.0,0.0040884]
[1726051882838,2.81363089,56603.0,56602.0,0.0040884]
[1726051883307,2.8413251,56603.0,56602.0,0.0040884]
[1726051884143,2.8273251,56603.0,56602.0,0.0040884]
[1726051884375,2.8323251,56603.0,56602.0,0.0040884]
[1726051884607,2.88540151,56603.0,56602.0,0.0040884]
[1726051884815,2.88240151,56603.0,56602.0,0.0040884]
[1726051885237,2.90840151,56603.0,56602.0,0.0040884]
[1726051885462,2.55306351,56603.0,56602.0,0.0040884]
[1726051885686,2.51606351,56603.0,56602.0,0.0040884]
[1726051885910,2.47706351,56603.0,56602.0,0.0040884]
[1726051886123,2.31777121,56603.0,56602.0,0.0040884]
[1726051890830,2.17637121,56603.0,56602.0,0.0040884]
[1726051891314,2.1232948,56603.0,56602.0,0.0040884]
[1726051891548,2.17640177,56603.0,56602.0,0.0040884]
[1726051892215,2.35257132,56603.0,56602.0,0.0040884]
[1726051892669,1.79536956,56603.0,56602.0,0.0040884]
[1726051893138,1.74226259,56603.0,56602.0,0.0040884]
[1726051893633,1.54062318,56603.0,56602.0,0.0040884]
[1726051893860,0.204669,56603.0,56602.0,0.0644884]
[1726051894086,0.911345,56603.0,56602.0,0.0644884]
[1726051894301,0.897345,56603.0,56602.0,0.0644884]
[1726051894517,0.911345,56603.0,56602.0,0.0644884]
[1726051894748,0.897345,56603.0,56602.0,0.0644884]
[1726051894964,0.554007,56603.0,56602.0,0.0644884]
[1726051895183,0.993345,56603.0,56602.0,0.0644884]
[1726051895831,1.007345,56603.0,56602.0,0.0644884]
[1726051900168,1.007345,56603.0,56602.0,0.0040884]
[1726051900169,1.96930168,56603.0,56602.0,0.0040884]
[1726051900660,1.69196227,56603.0,56602.0,0.0040884]
[1726051900910,1.53662318,56603.0,56602.0,0.0040884]
[1726051901841,1.73826259,56603.0,56602.0,0.0040884]
[1726051903005,1.80066259,56603.0,56602.0,0.0040884]
[1726051903234,2.15400059,56603.0,56602.0,0.0040884]
[1726051903698,2.29034004,56603.0,56602.0,0.0040884]
[1726051903917,2.45250959,56603.0,56602.0,0.0040884]
[1726051904182,2.45650959,56603.0,56602.0,0.0040884]
[1726051904400,2.46350959,56603.0,56602.0,0.0040884]
[1726051904623,2.46550959,56603.0,56602.0,0.0040884]
[1726051905048,2.48850959,56603.0,56602.0,0.0040884]
[1726051905272,2.48650959,56603.0,56602.0,0.0040884]
[1726051905488,2.48250959,56603.0,56602.0,0.0040884]
[1726051905922,2.49650959,56603.0,56602.0,0.0040884]
[1726051906145,2.51950959,56603.0,56602.0,0.0040884]
[1726051906793,2.54720287,56603.0,56602.0,0.0040884]
[1726051907233,2.90054087,56603.0,56602.0,0.0040884]
[1726051907456,2.54720287,56603.0,56602.0,0.0040884]
[1726051908378,2.51720287,56603.0,56602.0,0.0040884]
[1726051909042,2.90054087,56603.0,56602.0,0.0040884]
[1726051909333,0.03,56596.0,56595.0,0.001634]
[1726051909558,1.28303163,56596.0,56595.0,0.001634]
[1726051909790,2.31443304,56596.0,56595.0,0.001634]
[1726051910037,2.31913122,56596.0,56595.0,0.001634]
[1726051910485,2.29143304,56596.0,56595.0,0.001634]
[1726051910705,2.30243304,56596.0,56595.0,0.001634]
[1726051911362,2.31643304,56596.0,56595.0,0.001634]
[1726051911601,2.49260259,56596.0,56595.0,0.001634]
[1726051912319,2.46260259,56596.0,56595.0,0.001634]
[1726051912523,2.47691139,56596.0,56595.0,0.001634]
[1726051913199,2.50460814,56596.0,56595.0,0.001634]
[1726051914384,2.53460814,56596.0,56595.0,0.001634]
[1726051914590,2.52052705,56596.0,56595.0,0.001634]
[1726051915345,2.55052705,56596.0,56595.0,0.001634]
[1726051915586,2.60140975,56596.0,56595.0,0.001634]
[1726051915807,2.62440975,56596.0,56595.0,0.001634]
[1726051916500,2.57352705,56596.0,56595.0,0.001634]
[1726051918225,2.58061205,56596.0,56595.0,0.001634]
[1726051918439,2.93399305,56596.0,56595.0,0.001634]
[1726051918672,3.47095684,56596.0,56595.0,0.001634]
[1726051918874,3.42007414,56596.0,56595.0,0.001634]
[1726051919101,3.4360536,56596.0,56595.0,0.001634]
[1726051919323,3.45211322,56596.0,56595.0,0.001634]
[1726051919604,3.09873222,56596.0,56595.0,0.001634]
[1726051919823,2.89756267,56596.0,56595.0,0.001634]
[1726051920287,2.90956267,56596.0,56595.0,0.001634]
[1726051920771,2.91156267,56596.0,56595.0,0.001634]
[1726051921035,2.97444537,56596.0,56595.0,0.001634]
[1726051921261,3.09973222,56596.0,56595.0,0.001634]
[1726051921516,2.29086267,56596.0,56595.0,0.001634]
[1726051921755,1.83498492,56596.0,56595.0,0.001634]
[1726051921996,1.79584547,56596.0,56595.0,0.001634]
[1726051922443,1.78184547,56596.0,56595.0,0.001634]
[1726051923400,1.76784547,56596.0,56595.0,0.001634]
[1726051923836,1.97201502,56596.0,56595.0,0.001634]
[1726051924051,1.95801502,56596.0,56595.0,0.001634]
[1726051924271,1.78084547,56596.0,56595.0,0.001634]
[1726051924502,1.78078848,56596.0,56595.0,0.001634]
[1726051924779,1.82248444,56596.0,56595.0,0.001634]
[1726051924985,2.17586544,56596.0,56595.0,0.001634]
[1726051925454,2.16186544,56596.0,56595.0,0.001634]
[1726051925677,2.17586544,56596.0,56595.0,0.001634]
[1726051926122,2.35203499,56596.0,56595.0,0.001634]
[1726051926560,2.33903499,56596.0,56595.0,0.001634]
[1726051927053,2.33503236,56596.0,56595.0,0.001634]
[1726051927293,2.39780814,56596.0,56595.0,0.001634]
[1726051927513,2.38580814,56596.0,56595.0,0.001634]
[1726051927725,2.41180814,56596.0,56595.0,0.001634]
[1726051928400,2.05842714,56596.0,56595.0,0.001634]
[1726051928670,2.04225136,56596.0,56595.0,0.001634]
[1726051928877,2.0262719,56596.0,56595.0,0.001634]
[1726051929757,2.07941578,56596.0,56595.0,0.001634]
[1726051930507,2.59427948,56596.0,56595.0,0.001634]
[1726051930736,2.63344947,56596.0,56595.0,0.001634]
[1726051931213,2.62144947,56596.0,56595.0,0.001634]
[1726051931440,2.58175351,56596.0,56595.0,0.001634]
[1726051931695,2.57958352,56596.0,56595.0,0.001634]
[1726051931934,2.54488103,56596.0,56595.0,0.001634]
[1726051932162,2.53088103,56596.0,56595.0,0.001634]
[1726051932393,2.54488103,56596.0,56595.0,0.001634]
[1726051932858,2.55888103,56596.0,56595.0,0.001634]
[1726051933087,2.55688103,56596.0,56595.0,0.001634]
[1726051933553,2.60538418,56596.0,56595.0,0.001634]
[1726051934037,2.20350003,56596.0,56595.0,0.001634]
[1726051934273,1.453079,56594.0,56593.0,0.0021474]
[1726051934504,1.453079,56594.0,56590.0,0.0024544]
[1726051934505,1.17587141,56591.0,56590.0,0.0024544]
[1726051934759,1.90084929,56591.0,56590.0,0.0024544]
[1726051934984,2.27726229,56591.0,56590.0,0.0024544]
[1726051935229,2.45343184,56591.0,56590.0,0.0024544]
[1726051935461,2.50182957,56591.0,56590.0,0.0024544]
[1726051935899,2.50382957,56591.0,56590.0,0.0024544]
[1726051936568,2.50391663,56591.0,56590.0,0.0024544]
[1726051937235,2.51591663,56591.0,56590.0,0.0024544]
[1726051937480,2.52991663,56591.0,56590.0,0.0024544]
[1726051938437,2.53191663,56591.0,56590.0,0.0024544]
[1726051939578,2.61221663,56591.0,56590.0,0.0024544]
[1726051940037,2.63992006,56591.0,56590.0,0.0024544]
[1726051940309,2.63792006,56591.0,56590.0,0.0024544]
[1726051940968,2.63792006,56591.0,56590.0,0.0040904]
[1726051941725,2.63792006,56591.0,56568.0,0.0024544]
[1726051941726,0.03,56572.0,56568.0,0.0024544]
[1726051941960,0.178,56574.0,56568.0,0.0024544]
[1726051941961,0.96045894,56571.0,56568.0,0.0024544]
[1726051942194,1.66753494,56571.0,56568.0,0.0024544]
[1726051942440,1.97727796,56571.0,56568.0,0.0024544]
[1726051942658,2.40174249,56571.0,56568.0,0.0024544]
[1726051942881,2.529097,56571.0,56568.0,0.0024544]
[1726051943326,2.55680922,56571.0,56568.0,0.0024544]
[1726051943549,2.54530777,56571.0,56568.0,0.0024544]
[1726051943782,2.41609348,56571.0,56568.0,0.0024544]
[1726051944229,2.43009348,56571.0,56568.0,0.0024544]
[1726051944446,2.41809348,56571.0,56568.0,0.0024544]
[1726051945138,2.61973289,56571.0,56568.0,0.0024544]
[1726051945399,2.63373289,56571.0,56568.0,0.0024544]
[1726051945615,2.63345849,56571.0,56568.0,0.0024544]
[1726051946277,1.327425,56569.0,56568.0,1e-08]
[1726051946514,1.64246304,56569.0,56568.0,1e-08]
[1726051946733,1.99801304,56569.0,56568.0,1e-08]
[1726051946950,2.05106704,56569.0,56568.0,1e-08]
[1726051947603,1.99801304,56569.0,56568.0,1e-08]
[1726051947821,1.43930541,56558.0,56557.0,0.0024544]
[1726051948042,1.73134345,56558.0,56557.0,0.0024544]
[1726051948257,2.25126245,56558.0,56557.0,0.0024544]
[1726051948481,2.31126245,56558.0,56557.0,0.0024544]
[1726051948703,2.33897706,56558.0,56557.0,0.0024544]
[1726051948930,2.49583373,56558.0,56557.0,0.0024544]
[1726051949160,2.51062701,56558.0,56557.0,0.0024544]
[1726051949372,3.03362701,56558.0,56557.0,0.0024544]
[1726051950253,3.0059124,56558.0,56557.0,0.0024544]
[1726051950505,3.0199124,56558.0,56557.0,0.0024544]
[1726051950732,3.05989578,56558.0,56557.0,0.0024544]
[1726051950955,3.03189578,56558.0,56557.0,0.0024544]
[1726051951174,2.90959578,56558.0,56557.0,0.0024544]
[1726051951395,2.92359578,56558.0,56557.0,0.0024544]
[1726051951841,2.8976124,56558.0,56557.0,0.0024544]
[1726051952287,2.15784957,56558.0,56557.0,0.0024544]
[1726051953202,1.95392476,56558.0,56557.0,0.0024544]
[1726051953427,1.58630576,56558.0,56557.0,0.0024544]
[1726051953648,1.77394517,56558.0,56557.0,0.0024544]
[1726051953871,1.78794517,56558.0,56557.0,0.0024544]
[1726051954125,1.80194517,56558.0,56557.0,0.0024544]
[1726051954338,1.78794517,56558.0,56557.0,0.0040904]
[1726051954596,1.77394517,56558.0,56557.0,0.0040904]
[1726051954814,1.78794517,56558.0,56557.0,0.0040904]
[1726051955719,1.77175347,56558.0,56557.0,0.0040904]
[1726051955905,1.80090532,56558.0,56557.0,0.0040904]
[1726051956345,1.78791808,56558.0,56557.0,0.0040904]
[1726051956564,1.79991808,56558.0,56557.0,0.0040904]
[1726051956812,1.96208763,56558.0,56557.0,0.0040904]
[1726051957044,1.97608763,56558.0,56557.0,0.0040904]
[1726051957278,1.79991808,56558.0,56557.0,0.0040904]
[1726051958368,1.87079808,56558.0,56557.0,0.0040904]
[1726051959947,1.84479808,56558.0,56557.0,0.0040904]
[1726051960187,1.85679808,56558.0,56557.0,0.0040904]
[1726051960891,1.87079808,56558.0,56557.0,0.0040904]
[1726051961417,1.85679808,56558.0,56557.0,0.0040904]
[1726051961852,1.87079808,56558.0,56557.0,0.0040904]
[1726051962290,1.85879808,56558.0,56557.0,0.0040904]
[1726051962536,1.85879808,56558.0,56557.0,0.1503904]
[1726051962537,0.33036149,56558.0,56557.0,0.1503904]
[1726051962765,0.04016461,56558.0,56557.0,0.1503904]
[1726051962992,0.014,56558.0,56557.0,0.1503904]
[1726051963221,0.353535,56572.0,56559.0,0.149]
[1726051963441,0.353547,56570.0,56564.0,0.0658]
[1726051963673,0.353547,56570.0,56559.0,0.17594018]
[1726051963674,0.17678,56568.0,56565.0,0.0832]
[1726051963898,0.01598225,56569.0,56565.0,0.0832]
[1726051963899,0.01598225,56567.0,56566.0,0.0658]
[1726051964596,0.19276325,56567.0,56566.0,0.0658]
[1726051965685,1.25345225,56567.0,56566.0,0.0658]
[1726051965938,1.35345225,56567.0,56566.0,0.0658]
[1726051966411,1.33747,56567.0,56566.0,0.0658]
[1726051966630,1.35348711,56567.0,56566.0,0.0658]
[1726051966861,1.35848711,56567.0,56566.0,0.0658]
[1726051967310,1.38119357,56567.0,56566.0,0.0658]
[1726051967564,1.54105134,56567.0,56566.0,0.0658]
[1726051967778,1.54805134,56567.0,56566.0,0.0658]
[1726051967987,1.38819357,56567.0,56566.0,0.0658]
[1726051968454,1.38119357,56567.0,56566.0,0.0658]
[1726051968728,1.38919357,56567.0,56566.0,0.0658]
[1726051969146,1.39019357,56567.0,56566.0,0.0658]
[1726051969359,1.38919357,56567.0,56566.0,0.0658]
[1726051969789,1.39519357,56567.0,56566.0,0.0658]
[1726051970016,1.38912781,56567.0,56566.0,0.0658]
[1726051970239,1.39512781,56567.0,56566.0,0.0658]
[1726051970671,1.38712781,56567.0,56566.0,0.0658]
[1726051971083,1.39812781,56567.0,56566.0,0.0658]
[1726051971536,1.38712781,56567.0,56566.0,0.0658]
[1726051971968,1.39912781,56567.0,56566.0,0.0658]
[1726051973800,1.38317646,56567.0,56566.0,0.0658]
[1726051974034,1.39917827,56567.0,56566.0,0.0658]
[1726051974252,1.47003827,56567.0,56566.0,0.0658]
[1726051975140,1.39917827,56567.0,56566.0,0.0658]
[1726051975382,1.11647527,56567.0,56566.0,0.0658]
[1726051975621,1.04561527,56567.0,56566.0,0.0658]
[1726051976105,1.04561527,56567.0,56566.0,0.1487]
[1726051976106,0.16170827,56567.0,56566.0,0.1487]
[1726051976357,0.69205227,56567.0,56566.0,0.1487]
[1726051976573,0.31078281,56567.0,56566.0,0.1487]